Cogmind - Beta 13 @@@ ROGUE MODE // 2024.04.10 @ 11:14:23 Player: Rocketboy Result: Destroyed by H-66 Slayer with Gauss Rifle Performance ------------- Evolutions (4) 2000 Regions Visited (9) 1800 Robots Destroyed (46) 230 Value Destroyed (1073) 1073 Prototype IDs (27) 540 Alien Tech Used (0) 0 Bonus (1539) 1539 TOTAL SCORE: 7182 Bonus ------- High Alert Combat Kills 39 Entered Garrisons 200 Used RIF Installer 500 Entered DSFs 500 Aligned with FarCom 300 Cogmind --------- Core Integrity 0/850 Matter 78/300 Energy 98/100 System Corruption 5% Temperature Cool (1) Movement Treading (160) Location -6/Garrison Parts ------- > --- POWER (2) -------- (None) > --- PROPULSION (4) --- Improved Treads > --- UTILITY (7) ------ Lightpack 2.0 Advanced Visual Processing Unit > --- WEAPON (2) ------- (None) > --- INVENTORY (40) --- Light Angular Momentum Engine Light Angular Momentum Engine VSS Leg Hover Unit Gravmag System Gravmag System Gravmag System Surge Thruster Surge Thruster Surge Thruster Surge Thruster Cooled VTOL Module Cooled VTOL Module Advanced Heat Sink Advanced Weight Redist. System Advanced Weight Redist. System Advanced Weight Redist. System Advanced Visual Processing Unit Improved Terrain Scanner Target Analyzer Core Analyzer Particle Charger Kinecellerator Kinecellerator Weapon Cycler Weapon Cycler Improved Light Armor Plating Improved Medium Armor Plating Shock Absorption System Improved Trap Extractor (0/6) Improved Trap Extractor (0/6) Remote Datajack Peak State ------------ > --- POWER ------------ Angular Momentum Engine Light Angular Momentum Engine > --- PROPULSION ------- Gravmag System Gravmag System Gravmag System Gravmag System > --- UTILITY ---------- Lightpack 2.0 Advanced Visual Processing Unit Layered Light Armor Plating Hacking Suite System Shield > --- WEAPON ----------- Advanced Beam Rifle Coil Gun > --- INVENTORY -------- Ion Engine Light Deuterium Engine Nuclear Core Micro Nuclear Core Improved Treads Titanium Leg Titanium Leg Titanium Leg VSS Leg Hover Unit Gravmag System Cooled VTOL Module Cooled VTOL Module Cooled VTOL Module Advanced Weight Redist. System Advanced Weight Redist. System Advanced Weight Redist. System Advanced Visual Processing Unit Improved Terrain Scanner Core Analyzer Particle Charger Kinecellerator Kinecellerator Weapon Cycler Weapon Cycler Improved Medium Armor Plating Shock Absorption System Component Analysis Suite Improved Trap Extractor Improved Trap Extractor Improved Medium Laser Ion Cannon Gauss Rifle Flak Cannon Advanced Assault Cannon Datajack [Rating: 90] Favorites ----------- Power Nuclear Core Engine Ion Engine Power Core Nuclear Core Propulsion Gravmag System Treads Improved Treads Leg Aluminum Leg Hover Unit Gravmag System Flight Unit Cooled VTOL Module Utility Hacking Suite Device Improved Terrain Scanner Storage Lightpack 2.0 Processor Advanced Visual Processing Unit Hackware Hacking Suite Protection Improved Light Armor Plating Weapon Advanced Beam Rifle Energy Gun Advanced Beam Rifle Energy Cannon Ion Cannon Ballistic Gun Coil Gun Ballistic Cannon Advanced Assault Cannon Launcher Mini Grenade Launcher Special Melee Weapon Datajack Build | -11 -10 -10 -10 -9 -8 -7 -7 -6 -6 ------- Run | Yrd Mat Min Exi Min Mat Fac DSF Fac Gar Slots Evolved 8 | . . . . . 4 2 . 2 . Power 1 | . . . . . . 1 . . . Propulsion 2 | . . . . . 2 . . . . Utility 5 | . . . . . 2 1 . 2 . Weapon . | . . . . . . . . . . Parts Attached 111 | 8 2 . 5 . 28 14 . 8 46 Power 19 | 2 . . . . 4 4 . 3 6 Engine 10 | 2 . . . . 3 . . 2 3 Core 9 | . . . . . 1 4 . 1 3 Reactor . | . . . . . . . . . . Propulsion 52 | 2 1 . 2 . 15 8 . 1 23 Treads 1 | . . . . . . . . . 1 Leg 18 | 2 1 . . . 3 . . . 12 Wheel . | . . . . . . . . . . Hover 23 | . . . 2 . 12 8 . 1 . Flight 10 | . . . . . . . . . 10 Utility 12 | 2 . . 2 . 2 1 . 3 2 Device 3 | 1 . . . . . 1 . . 1 Storage 3 | 1 . . 1 . 1 . . . . Processor 1 | . . . . . . . . 1 . Hackware 3 | . . . 1 . 1 . . 1 . Protection 2 | . . . . . . . . 1 1 Artifact . | . . . . . . . . . . Weapon 28 | 2 1 . 1 . 7 1 . 1 15 Energy Gun 12 | 2 1 . 1 . 4 1 . . 3 Energy Cannon 2 | . . . . . . . . . 2 Ballistic Gun 5 | . . . . . . . . 1 4 Ballistic Cannon 7 | . . . . . 2 . . . 5 Launcher 1 | . . . . . 1 . . . . Special Weapon . | . . . . . . . . . . Impact Weapon . | . . . . . . . . . . Slashing Weapon . | . . . . . . . . . . Piercing Weapon . | . . . . . . . . . . Special Melee Weapon 1 | . . . . . . . . . 1 Unidentified Prototypes 4 | . . . . . 3 . . . 1 Parts Lost 32 | . 1 . . . 7 . . . 24 Power 6 | . . . . . 1 . . . 5 Propulsion 11 | . . . . . 3 . . . 8 Utility 4 | . . . . . 1 . . . 3 Weapon 11 | . 1 . . . 2 . . . 8 Highest Loss Streak 7 | . 1 . . . 5 . . . 7 To Critical Strikes . | . . . . . . . . . . Average Slot Usage (%) 86 | . 99 100 100 100 76 83 84 81 76 Engine 7 | . 14 14 14 14 6 . . 3 5 Core 3 | . . . . . 2 14 15 8 4 Leg 12 | . 28 28 13 . 6 . . . 9 Hover 12 | . . . 14 28 26 30 30 26 1 Flight 3 | . . . . . . . . . 12 Device 6 | . 14 14 7 . . 7 7 3 3 Storage 9 | . 14 14 14 14 9 7 7 6 6 Processor 1 | . . . . . . . . 6 6 Hackware 7 | . . . 6 14 8 7 7 8 11 Energy Gun 15 | . 27 28 28 28 15 14 15 6 1 Ballistic Cannon 1 | . . . . . . . . . 4 Naked Turns . | . . . . . . . . . . Heaviest Build 38 | 15 15 14 14 12 19 23 23 38 36 Greatest Support 73 | 20 20 20 20 12 51 45 45 45 73 Greatest Overweight (x) 10 | . . . 1 . 1 . . 1 10 Average Overweight (x) . | . . . . . . . . . . Largest Inventory Capacity 40 | 8 8 8 8 8 40 40 40 40 40 Average Capacity 27 | 6 8 8 7 8 39 40 40 40 40 Most Carried 39 | 2 8 8 8 8 26 38 39 39 39 Average Carried 20 | 1 5 8 7 8 18 32 38 37 33 Final Capacity 40 | 8 8 8 8 8 40 40 40 40 40 Final Carried 39 | 2 8 8 8 8 25 38 39 39 32 Class Distribution -------------------- 48% | Hauler-Mutant 38% | Mutant 12% | Hauler-Sprinter Dominant Class ---------------- Mutant | -10/Materials Mutant | -10/Mines Mutant | -10/Exiles Mutant | -9/Mines Hauler-Mutant | -8/Materials Hauler-Mutant | -7/Factory Hauler-Mutant | -7/DSF Hauler-Mutant | -6/Factory Hauler-Mutant | -6/Garrison Resources | -11 -10 -10 -10 -9 -8 -7 -7 -6 -6 ----------- Run | Yrd Mat Min Exi Min Mat Fac DSF Fac Gar Matter Collected 1391 | 280 20 . . 50 299 30 . . 712 Remotely . | . . . . . . . . . . Salvage Created 1358 | 81 161 46 . 236 339 30 . . 465 Parts 85 | 7 18 2 . 7 27 3 . . 21 Haulers Intercepted 2 | . . . . . 2 . . . . Recyclers Shooed 1 | . . . . . 1 . . . . Parts Field Recycled . | . . . . . . . . . . Retrieved Matter . | . . . . . . . . . . Parts Self-Destructed . | . . . . . . . . . . Prevented . | . . . . . . . . . . Kills | -11 -10 -10 -10 -9 -8 -7 -7 -6 -6 ------- Run | Yrd Mat Min Exi Min Mat Fac DSF Fac Gar Combat Hostiles Destroyed 31 | . 3 3 . 4 9 . . . 12 Guns 19 | . 2 3 . 4 6 . . . 4 Cannons 8 | . . . . . . . . . 8 AOE 3 | . . . . . 3 . . . . Classes Destroyed 15 | 2 6 . . . 4 . . . 3 Worker 1 | . 1 . . . . . . . . Builder 2 | . 1 . . . 1 . . . . Tunneler 2 | 1 . . . . . 1 . . . Hauler 2 | . . . . . 2 . . . . Recycler 3 | 1 . . . 2 . . . . . Mechanic 1 | . . . . . 1 . . . . Operator 3 | . 2 . . . 1 . . . . Watcher 1 | . 1 . . . . . . . . Swarmer 13 | . 2 3 . 4 4 . . . . Cutter 3 | . . . . . . . . . 3 Grunt 9 | . 1 . . . 2 . . . 6 Brawler 1 | . . . . . . . . . 1 Sentry 3 | . . . . . 2 . . . 1 Hunter 1 | . . . . . 1 . . . . Programmer 1 | . . . . . . . . . 1 Best Kill Streak 7 | 2 3 2 . 6 7 1 . . 3 Combat Bots Only 4 | . 2 2 . 4 4 . . . 3 Max Kills in Single Turn 4 | 1 1 1 . 2 4 1 . . 1 Gunslinging 1 | . . . . 1 . . . . . Exploded 2 | . . . . . 2 . . . . Melee . | . . . . . . . . . . Uniques/NPCs Destroyed . | . . . . . . . . . . Combat | -11 -10 -10 -10 -9 -8 -7 -7 -6 -6 -------- Run | Yrd Mat Min Exi Min Mat Fac DSF Fac Gar Hostile Shots Fired 496 | . 12 7 . 13 114 . 1 . 349 Missed 153 | . 3 3 . 1 46 . . . 100 Damage Taken 4836 | . 204 34 . 88 663 . 47 . 3800 Core 1067 | . 44 . . 7 159 . . . 857 Absorbed by Shields 60 | . . . . . . . . . 60 Regen/Repaired (Parts) 74 | . . . . . 38 36 . . . Core Remaining (%) 87 | 100 . . . 79 71 . 100 . . Volleys Fired 157 | 3 22 4 . 10 43 4 . . 71 Largest 2 | 2 2 2 . 2 2 2 . . 2 Hottest 122 | 90 90 90 . 80 122 122 . . 117 Shots Fired 265 | 6 44 8 . 20 78 8 . . 101 Gun 186 | 6 44 8 . 20 64 8 . . 36 Cannon 71 | . . . . . 6 . . . 65 Launcher 8 | . . . . . 8 . . . . Special . | . . . . . . . . . . Kinetic 70 | . . . . . 6 . . . 64 Thermal 173 | 3 35 8 . 20 64 8 . . 35 Explosive 8 | . . . . . 8 . . . . Electromagnetic 14 | 3 9 . . . . . . . 2 Robot Hit Streak 17 | 3 13 3 . 9 17 2 . . 11 Robot Miss Streak 7 | 1 3 2 . 4 7 3 . . 4 Penetration Max . | . . . . . . . . . . Secondary Targets 2 | . . . . 1 1 . . . . Max Gunslinging Chain 1 | . . . . 1 1 . . . . Shots Hit Robots 169 | 4 30 3 . 12 48 3 . . 69 Core Hits 93 | 3 11 3 . 8 29 1 . . 38 Critical Kills . | . . . . . . . . . . Critical Parts Destroyed 1 | . . . . . . . . . 1 Critical Strikes 12 | . 4 . . . 5 . . . 3 Burn 9 | . 3 . . . 5 . . . 1 Destroy 1 | . . . . . . . . . 1 Blast 1 | . . . . . . . . . 1 Corrupt 1 | . 1 . . . . . . . . Melee Attacks . | . . . . . . . . . . Impact . | . . . . . . . . . . Slashing . | . . . . . . . . . . Piercing . | . . . . . . . . . . Sneak Attacks . | . . . . . . . . . . Combat Hostiles . | . . . . . . . . . . Follow-up Attacks . | . . . . . . . . . . Damage Inflicted 3674 | 55 412 38 . 169 1198 60 . . 1742 Guns 1998 | 55 380 38 . 169 782 60 . . 514 Cannons 1306 | . . . . . 78 . . . 1228 Explosions 370 | . 32 . . . 338 . . . . Melee . | . . . . . . . . . . Ramming . | . . . . . . . . . . Kinetic 1276 | . . . . . 78 . . . 1198 Thermal 1911 | 25 313 38 . 169 782 60 . . 524 Explosive 338 | . . . . . 338 . . . . Electromagnetic 149 | 30 99 . . . . . . . 20 Impact . | . . . . . . . . . . Slashing . | . . . . . . . . . . Piercing . | . . . . . . . . . . Highest Corruption 5 | . . . . . . . . . 5 Average Corruption 2 | . . . . . . . . . 2 Corruption Purged . | . . . . . . . . . . Corruption Blocked . | . . . . . . . . . . Effects 2 | . . . . . . . . . 2 Heat Flow Errors 1 | . . . . . . . . . 1 Energy Discharges 1 | . . . . . . . . . 1 Overload Shots . | . . . . . . . . . . Overflow Damage . | . . . . . . . . . . Projectiles . | . . . . . . . . . . Explosions . | . . . . . . . . . . Melee . | . . . . . . . . . . Knockbacks 12 | . . . . . 5 . . . 7 Impact . | . . . . . . . . . . Kinetic 12 | . . . . . 5 . . . 7 Secondary . | . . . . . . . . . . Self-Inflicted Damage 45 | . 45 . . . . . . . . Shots 1 | . 1 . . . . . . . . Rammed . | . . . . . . . . . . Targets Rammed . | . . . . . . . . . . Kicked . | . . . . . . . . . . Crushed . | . . . . . . . . . . Highest Temperature 487 | 60 255 60 . 242 487 216 . . 390 Average Temperature 133 | 27 65 31 . 122 157 93 . . 170 Received Heat Transfer 1389 | . 69 . . . 153 . . . 1167 Effects 18 | . . . . . 10 . . . 8 Shutdowns 3 | . . . . . 2 . . . 1 Interference 5 | . . . . . 1 . . . 4 Short Circuit 2 | . . . . . . . . . 2 Damage (minor) 1 | . . . . . . . . . 1 Damage (major) 7 | . . . . . 7 . . . . Siege Activations . | . . . . . . . . . . Robots Corrupted . | . . . . . . . . . . Combat Hostiles . | . . . . . . . . . . Parts Fried . | . . . . . . . . . . Impact Corruptions . | . . . . . . . . . . Robots Melted 1 | . 1 . . . . . . . . Combat Hostiles 1 | . 1 . . . . . . . . Parts Melted 6 | . 3 . . . 3 . . . . Heat Transferred 4573 | 74 1051 111 . 375 1889 111 . . 962 Parts Sabotaged . | . . . . . . . . . . Parts Stolen . | . . . . . . . . . . Parts Stripped . | . . . . . . . . . . Power Chain Reactions 1 | . 1 . . . . . . . . Alert | -11 -10 -10 -10 -9 -8 -7 -7 -6 -6 ------- Run | Yrd Mat Min Exi Min Mat Fac DSF Fac Gar Peak Influence 586 | 10 157 90 . 115 586 136 17 8 215 Initial 91 | . 6 5 . . 44 91 17 8 5 Average 117 | 2 68 37 . 69 238 91 17 8 131 Maximum Alert Level 2 | . . . . . 2 . . . 1 Low Security (%) 89 | 100 100 100 . 100 61 100 100 100 89 Level 1 5 | . . . . . 12 . . . 10 Level 2 5 | . . . . . 26 . . . . Level 3 . | . . . . . . . . . . Level 4 . | . . . . . . . . . . Level 5 . | . . . . . . . . . . High Security . | . . . . . . . . . . Max Security . | . . . . . . . . . . Squads Dispatched 10 | . 3 . . . 5 2 . . . Investigation 6 | . 1 . . . 3 2 . . . Extermination . | . . . . . . . . . . Reinforcement 3 | . 2 . . . 1 . . . . Assault . | . . . . . . . . . . Garrison 1 | . . . . . 1 . . . . Intercept . | . . . . . . . . . . Searches Triggered . | . . . . . . . . . . Construction Impeded . | . . . . . . . . . . Haulers Reinforced . | . . . . . . . . . . Active Scanning Responses . | . . . . . . . . . . Cargo Convoy Interrupts . | . . . . . . . . . . Stealth | -11 -10 -10 -10 -9 -8 -7 -7 -6 -6 --------- Run | Yrd Mat Min Exi Min Mat Fac DSF Fac Gar Distress Signals 3 | . . . . . 3 . . . . Communications Jammed . | . . . . . . . . . . Distress Signals . | . . . . . . . . . . Times Spotted 75 | . 10 4 . 6 32 1 . . 22 Peak Tracking Total 15 | . 3 3 . 4 15 . 1 . 6 Tactical Retreats 10 | . 1 1 . . 6 . . . 2 Traps | -11 -10 -10 -10 -9 -8 -7 -7 -6 -6 ------- Run | Yrd Mat Min Exi Min Mat Fac DSF Fac Gar Traps Triggered 16 | . 1 . . . 2 4 3 . 6 Indirectly . | . . . . . . . . . . Trap Hack Attempts 39 | . . . . . . . . . 39 Triggered . | . . . . . . . . . . Disarmed 2 | . . . . . . . . . 2 Reprogrammed 4 | . . . . . . . . . 4 Reused 1 | . . . . . . . . . 1 Traps Extracted . | . . . . . . . . . . Installed . | . . . . . . . . . . Triggered 1 | . . . . . . . . . 1 Machines | -11 -10 -10 -10 -9 -8 -7 -7 -6 -6 ---------- Run | Yrd Mat Min Exi Min Mat Fac DSF Fac Gar Machines Disabled 2 | . 1 . . . 1 . . . . Max in Single Turn 1 | . 1 . . . 1 . . . . Machines Repaired . | . . . . . . . . . . Machines Dismantled . | . . . . . . . . . . Machines Sabotaged . | . . . . . . . . . . Overloaded Fab Kills . | . . . . . . . . . . Hacking | -11 -10 -10 -10 -9 -8 -7 -7 -6 -6 --------- Run | Yrd Mat Min Exi Min Mat Fac DSF Fac Gar Machines Accessed 22 | . 4 . 1 . 8 6 . 1 2 Terminals 14 | . 4 . . . 6 2 . . 2 Fabricators 1 | . . . . . . 1 . . . Repair Stations 2 | . . . . . 1 1 . . . Recycling Units 2 | . . . . . . 2 . . . Scanalyzers 1 | . . . . . 1 . . . . Garrison Access 1 | . . . . . . . . 1 . Total Hacks 67 | . 14 . 1 . 31 15 . 3 3 Successful 52 | . 11 . 1 . 27 12 . 1 . Failed 15 | . 3 . . . 4 3 . 2 3 Catastrophic 1 | . . . . . 1 . . . . Database Lockouts . | . . . . . . . . . . Manual 40 | . 14 . 1 . 16 9 . . . Terminals 47 | . 14 . . . 21 9 . . 3 Fabricators 2 | . . . . . . 2 . . . Repair Stations 4 | . . . . . 2 2 . . . Recycling Units 2 | . . . . . . 2 . . . Scanalyzers 8 | . . . . . 8 . . . . Garrison Access 3 | . . . . . . . . 3 . Terminal Hacks 16 | . 3 . 1 . 8 4 . . . Record 1 | . . . . . . 1 . . . Open DSF 1 | . . . . . . 1 . . . Branch Access Points 2 | . 1 . . . 1 . . . . Terminal Index 3 | . 1 . . . 1 1 . . . Repair Station Index 1 | . . . . . 1 . . . . Alert Level 3 | . . . . . 2 1 . . . Unreport Threat 2 | . . . . . 2 . . . . Locate Traps 1 | . 1 . . . . . . . . Recall Investigation 1 | . . . . . 1 . . . . Derelict Proto ID Bank 1 | . . . 1 . . . . . . Fabricator Hacks 1 | . . . . . . 1 . . . Network Status 1 | . . . . . . 1 . . . Repair Station Hacks 4 | . . . . . 2 2 . . . Scan Component 2 | . . . . . 1 1 . . . Repair 2 | . . . . . 1 1 . . . Recycling Unit Hacks . | . . . . . . . . . . Scanalyzer 8 | . . . . . 8 . . . . Insert Component 4 | . . . . . 4 . . . . Analyze 4 | . . . . . 4 . . . . Garrison Access Hacks 1 | . . . . . . . . 1 . Unlock Access 1 | . . . . . . . . 1 . Unauthorized Hacks 22 | . 8 . . . 9 5 . . . Terminals 20 | . 8 . . . 9 3 . . . Track 7 | . 3 . . . 3 1 . . . Botnet 11 | . 4 . . . 6 1 . . . Operators 2 | . 1 . . . . 1 . . . Fabricators . | . . . . . . . . . . Repair Stations . | . . . . . . . . . . Recycling Units 2 | . . . . . . 2 . . . Reject 1 | . . . . . . 1 . . . Tunnel 1 | . . . . . . 1 . . . Scanalyzers . | . . . . . . . . . . Garrison Access . | . . . . . . . . . . Data Cores Recovered . | . . . . . . . . . . Used . | . . . . . . . . . . Hacking Detections 18 | . 3 . . . 7 5 . 1 2 Full Trace Events 3 | . . . . . 3 . . . . Feedback Events . | . . . . . . . . . . Feedback Blocked . | . . . . . . . . . . Robot Schematics Acquired . | . . . . . . . . . . Robots Built . | . . . . . . . . . . Authchips . | . . . . . . . . . . Time . | . . . . . . . . . . Total Robot Build Rating . | . . . . . . . . . . Part Schematics Acquired 4 | . . . . . 4 . . . . Parts Built . | . . . . . . . . . . Authchips . | . . . . . . . . . . Time . | . . . . . . . . . . Total Part Build Rating . | . . . . . . . . . . Parts Repaired 2 | . . . . . 1 1 . . . Time 66 | . . . . . 44 22 . . . Parts Recycled . | . . . . . . . . . . Recycled Matter . | . . . . . . . . . . Retrieved Matter . | . . . . . . . . . . Retrieved Components . | . . . . . . . . . . Parts Scanalyzed 4 | . . . . . 4 . . . . Part Schematics Acquired 4 | . . . . . 4 . . . . Parts Damaged . | . . . . . . . . . . Bothacking | -11 -10 -10 -10 -9 -8 -7 -7 -6 -6 ------------ Run | Yrd Mat Min Exi Min Mat Fac DSF Fac Gar Used RIF Installer 1 | . . . . . . . . . 1 Robots Hacked . | . . . . . . . . . . Non-combat . | . . . . . . . . . . Combat . | . . . . . . . . . . Robot Hacks Applied . | . . . . . . . . . . Relay Couplers Released . | . . . . . . . . . . Fabnet Peak Effective % . | . . . . . . . . . . Robots Rewired . | . . . . . . . . . . Allies Hacked . | . . . . . . . . . . Hacks Repelled . | . . . . . . . . . . Allies | -11 -10 -10 -10 -9 -8 -7 -7 -6 -6 -------- Run | Yrd Mat Min Exi Min Mat Fac DSF Fac Gar Total Allies . | . . . . . . . . . . Largest Group . | . . . . . . . . . . Highest-Rated Group . | . . . . . . . . . . Highest-Rated Ally . | . . . . . . . . . . Total Orders . | . . . . . . . . . . Ally Attacks . | . . . . . . . . . . Total Damage . | . . . . . . . . . . Kills . | . . . . . . . . . . Allies Corrupted . | . . . . . . . . . . Allies Melted . | . . . . . . . . . . Intel | -11 -10 -10 -10 -9 -8 -7 -7 -6 -6 ------- Run | Yrd Mat Min Exi Min Mat Fac DSF Fac Gar Robot Analysis Total . | . . . . . . . . . . Derelict Logs Recovered 1 | . . 1 . . . . . . . Drone Launches . | . . . . . . . . . . Drone Recoveries . | . . . . . . . . . . Exploration | -11 -10 -10 -10 -9 -8 -7 -7 -6 -6 ------------- Run | Yrd Mat Min Exi Min Mat Fac DSF Fac Gar Turns Passed 3711 | 65 480 476 316 74 680 504 28 78 1010 Spaces Moved 3708 | 39 329 386 396 72 613 802 38 129 904 Core 5 | 4 . . . . . . . . 1 Treads 10 | . . . . . . . . . 10 Legs 1097 | 35 329 386 121 . 35 . . . 191 Wheels . | . . . . . . . . . . Hover 1960 | . . . 275 72 578 802 38 129 66 Flight 636 | . . . . . . . . . 636 Fastest Speed 26 | 50 120 120 56 56 45 48 48 48 26 Average Speed 67 | 112 120 120 76 56 53 48 48 48 50 Slowest Speed 550 | 120 120 120 120 56 130 52 48 108 550 Overloaded Moves . | . . . . . . . . . . Propulsion Burnouts . | . . . . . . . . . . Robots Hopped . | . . . . . . . . . . Cave-ins Triggered . | . . . . . . . . . . Exploration Rate (%) 39 | 4 60 81 69 21 46 21 38 4 54 Regions Visited 9 Branch Regions 3 Pre-discovered Areas 2 | . . 1 . . . 1 . . . Known Exits Taken 3 | . 1 . . . . 1 . 1 . Unknown Exits Taken 5 | 1 . 1 1 1 1 . . . . Scrap Searched 1 | . . . . 1 . . . . . Spaces Dug . | . . . . . . . . . . Terrain Destroyed 48 | . 2 . . . 43 . . . 3 Melee . | . . . . . . . . . . Projectile 3 | . . . . . . . . . 3 AOE 45 | . 2 . . . 43 . . . . Terrain Rammed . | . . . . . . . . . . Walls Destroyed . | . . . . . . . . . . Machines Disabled . | . . . . . . . . . . Actions | -11 -10 -10 -10 -9 -8 -7 -7 -6 -6 --------- Run | Yrd Mat Min Exi Min Mat Fac DSF Fac Gar Total 4638 | 50 370 391 410 85 881 906 47 143 1355 Wait 415 | . 10 2 . 4 159 62 . . 178 Move 3699 | 38 328 385 395 71 612 801 37 128 904 Hop . | . . . . . . . . . . Pick Up 86 | 1 7 . 5 . 29 25 1 3 15 Fast Attach 34 | 7 . . 1 . 10 7 . 3 6 Attach 38 | . 1 . . . 8 2 . 3 24 Detach 14 | . . . . . 4 . . 1 9 Swap 39 | 1 1 . 4 . 10 5 . 2 16 Drop 21 | . 1 . 5 . 6 . . 3 6 Fire 157 | 3 22 4 . 10 43 4 . . 71 Melee . | . . . . . . . . . . Ram . | . . . . . . . . . . Kick . | . . . . . . . . . . Crush . | . . . . . . . . . . Escape Stasis 96 | . . . . . . . 9 . 87 Rewire . | . . . . . . . . . . Trap 39 | . . . . . . . . . 39 Miscellaneous . | . . . . . . . . . . Route ------- -11/Scrapyard -10/Materials (discovered 2 exits: [*Mat] / *Min) -10/Mines (discovered 2 exits: [*Mat] / *Exi) -10/Exiles -9/Mines -8/Materials -7/Factory (discovered 3 exits: [*Low x2] / DSF) -7/DSF -6/Factory -6/Garrison (discovered 2 exits: [*Fac x2]) History --------- Turn | Location | Event 3 | -11/Scrapyard | Discovered new exit (range 15) 66 | -11/Scrapyard | Entered Materials 317 | -10/Materials | Build established: Mutant 479 | -10/Materials | Discovered new exit (range 10) 500 | -10/Materials | Discovered new exit (range 15) 503 | -10/Materials | Identified exit to Mines 546 | -10/Materials | Entered Mines 682 | -10/Mines | Learned location of Storage (-9) 917 | -10/Mines | Discovered new exit (range 5) 1018 | -10/Mines | Deemed a non-threat by the Exiles lab entrance 1018 | -10/Mines | Discovered new exit (range 5) 1022 | -10/Mines | Entered Exiles 1051 | -10/Exiles | Met 8R-AWN 1072 | -10/Exiles | Met EX-HEX 1111 | -10/Exiles | Met EX-BIN 1126 | -10/Exiles | Aligned with FarCom system 1127 | -10/Exiles | Given EX-Vault access code 1154 | -10/Exiles | Opened EX-Vault 1168 | -10/Exiles | Found Lightpack 2.0 1197 | -10/Exiles | Warned to stay clear of 0b10 Research branches 1231 | -10/Exiles | Met EX-DEC 1332 | -10/Exiles | Discovered new exit (range 14) 1338 | -10/Exiles | Left Exiles lab with Lightpack 2.0 1338 | -10/Exiles | Entered Mines 1384 | -9/Mines | Discovered new exit (range 10) 1412 | -9/Mines | Entered Materials 1412 | -8/Materials | Evolved 4 slots: Propulsion x2, Utility x2 1603 | -8/Materials | Lost 5 parts (3n2w) 1723 | -8/Materials | Build established: Hauler-Mutant 1905 | -8/Materials | Garrison activated, responded to threat 1916 | -8/Materials | Discovered new exit (range 7) 1934 | -8/Materials | Repaired Gravmag System 2092 | -8/Materials | Entered Factory 2092 | -7/Factory | Evolved 2 slots: Power x1, Utility x1 2175 | -7/Factory | Identified exit to DSF 2275 | -7/Factory | Discovered new exit (range 4) 2383 | -7/Factory | Discovered new exit (range 13) 2571 | -7/Factory | Repaired Gravmag System 2596 | -7/Factory | Entered DSF 2609 | -7/DSF | Discovered new exit (range 12) 2619 | -7/DSF | Additional patrols routed to DSF 2624 | -7/DSF | Entered Factory 2624 | -6/Factory | Evolved 2 slots: Utility x2 2701 | -6/Factory | Identified exit to Garrison 2702 | -6/Factory | Entered Garrison 2702 | -6/Garrison | Spotted B-86 Titan 2752 | -6/Garrison | Triggered checkpoint 2844 | -6/Garrison | Lost 7 parts (1p3n1u2w) 2870 | -6/Garrison | Discovered new exit (range 15) 2994 | -6/Garrison | Triggered checkpoint 3072 | -6/Garrison | Installed Relay Interface Framework 3124 | -6/Garrison | Triggered checkpoint 3175 | -6/Garrison | Discovered new exit (range 12) 3239 | -6/Garrison | Spotted B-86 Titan 3256 | -6/Garrison | Triggered checkpoint 3450 | -6/Garrison | Build established: Hauler-Sprinter 3535 | -6/Garrison | Lost 7 parts (2p4n1w) 3588 | -6/Garrison | Core integrity fell below 50% 3656 | -6/Garrison | Triggered checkpoint 3698 | -6/Garrison | Core integrity fell below 20% 3712 | -6/Garrison | Destroyed by H-66 Slayer with Gauss Rifle Last Messages --------------- Slug penetrates Wall. Penetrated by Slug. Slug penetrates Wall. Penetrated by Slug. Shock Rifle destroyed. Penetrated by Slug. H-66 Slayer knocked back. Penetrated by Slug. Lgt. Nuclear Core destroyed. Penetrated by Slug. Slug penetrates Wall. H-66 Slayer knocked back. Flak Cannon destroyed. Penetrated by Slug. Slug penetrates Wall. Penetrated by Slug. Adv. Assault Cannon destroyed. Penetrated by Slug. Coil Gun destroyed. Penetrated by Slug. Map ----- +----------------------------------------------------+ | ?????????????????????????????????????????????????? | | ?????????????????????????????????????????????????? | | ?????????????????????????????????????????????????? | | ?????????????????????????????????????????????????? | | ?????????????????????????????????????????????????? | | ?????????????????????????????????????????????????? | | ?????????????????????????????????????????????????? | | ?????????????????????????????????????????????????? | | ?????????????????????????????????????????????????? | | ?????????????????????????????????????????????????? | | ?????????????????????????????????????????????????? | | ?????????????????????????????????????????????????? | | ?????????????????????????????????????????????????? | | ?????????????????????????????????????????????????? | | ?????????????????????????????????????????????????? | | ?????????????????????????????????????????????????? | | ?????????????????????????????????????????????????? | | ?????????????????????????????????????????????????? | | ?????????????????????????????????????????????????? | | ?????????????????????????????????????????????????? | | ?????????????????????????????????????????????????? | | ???????????????????#####?????????????????????????? | | ???????????????????# #?????????????????????????? | | ???????????????????# < #############?????????????? | | ???????????????????# p h #?????????????? | | ???????????????????# @ h #?????????????? | | ???????????????????############## #?????????????? | | ????????????????????????????##### #?????????????? | | ????????????????????????????#"T"# #?????????????? | | ????????????????????????????#" #?????????????? | | ??????????????#####?????????##### #?????????????? | | ??????????????#"# #?????????????# #?????????????? | | ??????????????#" #???????####### ###########???? | | ??????????????#" #???????# % ^ #???? | | ??????????????#" #???????# ##### = #???? | | ??????????????#"# #???????# #???# ######## #???? | | ??????????????### ######### ##### ^#??????# #???? | | ????????????????# " "+ ^"??????# #???? | | ????????????????#### "########## #??????# #???? | | ???????????????????# "%#????????# #??????# #???? | | ???????????????????#####????????# #??????# ##### | | ????????????????????????????????# #??????# ## | | ????????????????????????????????# #?????## ## | | ????????????????????????????????# ####### | | ????????????????????????????????# | | ????????????????????????????????# | | ????????????????????????????????########## ## | | ?????????????????????????????????????????# ## | | ?????????????????????????????????????????" | | ?????????????????????????????????????????" | +----------------------------------------------------+ Best States ------------- Heat Dissipation 37 Energy Generation 31 Energy Capacity 440 Matter Stores 300 Matter Capacity 300 Sight Range 20 Terrain Scan Range 16 Terrain Scan Density 10 Additional Mass Support 9 Armor Coverage 150 Evasion (%) 64 Recoil Reduction 1 Offensive Hacking 10 Defensive Hacking 10 Item Schematics ----------------- Hacking Suite | -8/Materials | Scanalyzed Adv. Weight Redist. System | -8/Materials | Scanalyzed Ion Engine | -8/Materials | Scanalyzed Hover Unit | -8/Materials | Scanalyzed Robot Schematics ------------------ None Fabricated ------------ Nothing Alien Tech Used ----------------- None Achievements -------------- GoHome() Hehehe Challenges ------------ None Game ------ Seed GaussMassMachine Manual? 0 Play Time 01:03:58 Cumulative 30.1 hours Start 2024.04.10 @ 10:02:23 End 2024.04.10 @ 11:14:23 Sessions 1 Manual Loads 0 Difficulty Rogue Special Mode None Game No. 47 Rogue 47 Adventurer 0 Explorer 0 Win Type - Total 0 Types 0/0/0/0/0/0/0/0/0 Lore% 21 Gallery% 35 Achievement% 29 Wizard Run 0 Options --------- Layout 1 ASCII 0 Keyboard 0 Movement Mouse Keybinds 0 Fullscreen 1 Font 32/SmallcapsGlow Map View 50x35 Zoom Use 0% Tactical HUD 0 Map Filters NONE Filters NONE Steam 1 RUN: 9a0cf01f-f24a-4968-8b67-7be496626042